Workbook

Sheet 업무여유도-황원배
A2: □ 업무여유도
A3: ( 참여분야 : 사업책임기술자, 황원배)
A4: (중복도 산정 기준일) | D4: 2016-08-01
A5: No. | B5: 용역명 | C5: 발주처 | D5: 총사업금액 (백만원) | E5: 착수일 | F5: 준공일 | G5: 1년이내 잔여일수 | H5: 총계약일수 | I5: 중복금액 (백만원)
A6: 1 | B6: 광주-완도(나주-강진)고속도로건설사업환경영향평가용역 | C6: 한국도로공사 | D6: 832 | E6: 2015-07-24 | F6: 2016-12-27 | G6: =IF(F6-$D$4+1<365,F6-$D$4+1,365) -> 149 | H6: =F6-E6+1 -> 523 | I6: =ROUNDUP(D6*G6/H6/10,0) -> 24
A7: 2 | B7: 경기16공공1지구전략환경영향평가용역 | C7: 한국토지주택공사 경기지역본부 | D7: 75 | E7: 2016-05-02 | F7: 2016-12-30 | G7: =IF(F7-$D$4+1<365,F7-$D$4+1,365) -> 152 | H7: =F7-E7+1 -> 243 | I7: =ROUNDUP(D7*G7/H7/10,0) -> 5
A8: 3 | B8: 청송군소하천정비종합계획(변경)전략환경영향평가 (중지중 16.05.13) | C8: 청송군 | D8: 580 | E8: 2015-07-10 | F8: 2016-07-08 | G8: =IF(F8-$D$4+1<365,F8-$D$4+1,365) -> -23 | H8: 365 | I8: 잔여일 3개월이하
B9: 계 | I9: =SUM(I6:I8) -> 29

Sheet 업무여유도-강윤민
A2: □ 업무여유도
A3: ( 참여분야 : 수질관리책임기술자, 강윤민)
A4: (중복도 산정 기준일) | D4: 2016-08-01
A5: No. | B5: 용역명 | C5: 발주처 | D5: 총사업금액 (백만원) | E5: 착수일 | F5: 준공일 | G5: 1년이내 잔여일수 | H5: 총계약일수 | I5: 중복금액 (백만원)
A6: 1 | B6: 의성군소하천정비종합계획(변경)전략환경영향평가용역 | C6: 의성군 | D6: 495 | E6: 2016-03-22 | F6: 2017-03-21 | G6: =IF(F6-$D$4+1<365,F6-$D$4+1,365) -> 233 | H6: =F6-E6+1 -> 365 | I6: =ROUNDUP(D6*G6/H6/10,0) -> 32
A7: 2 | B7: 경기16공공1지구전략환경영향평가용역 | C7: 한국토지주택공사 경기지역본부 | D7: 75 | E7: 2016-05-02 | F7: 2016-12-30 | G7: =IF(F7-$D$4+1<365,F7-$D$4+1,365) -> 152 | H7: =F7-E7+1 -> 243 | I7: =ROUNDUP(D7*G7/H7/10,0) -> 5
A8: 3 | B8: 대구권광역철도전략환경영향평가용역(중지중 16.05.12) | C8: 국토교통부 | D8: 43 | E8: 2015-11-06 | F8: 2016-06-02 | G8: =IF(F8-$D$4+1<365,F8-$D$4+1,365) -> -59 | H8: 210 | I8: 잔여일 3개월이하
A9: 4 | B9: 곡성군소하천정비종합계획재수립전략환경영향평가용역 (중지중 16.01.19) | C9: 곡성군 | D9: 432 | E9: 2015-04-21 | F9: 2016-04-19 | G9: =IF(F9-$D$4+1<365,F9-$D$4+1,365) -> -103 | H9: =F9-E9+1 -> 365 | I9: 3개월이상 중지중
A10: 5 | B10: 한강시네폴리스일반산업단지환경보전방안수립용역 (중지중 13.05.02) | C10: 김포도시공사 | D10: 74 | E10: 2012-06-11 | F10: 2013-06-10 | G10: =IF(F10-$D$4+1<365,F10-$D$4+1,365) -> -1147 | H10: =F10-E10+1 -> 365 | I10: 3개월이상 중지중
B11: 계 | I11: =SUM(I6:I8) -> 37

Sheet 업무여유도-김기준
A2: □ 업무여유도
A3: ( 참여분야 : 대기관리책임기술자, 김기준)
A4: (중복도 산정 기준일) | D4: 2016-08-01
A5: No. | B5: 용역명 | C5: 발주처 | D5: 총사업금액 (백만원) | E5: 착수일 | F5: 준공일 | G5: 1년이내 잔여일수 | H5: 총계약일수 | I5: 중복금액 (백만원)
A6: 1 | B6: 광명소하지구도시개발사업환경영향평가용역 | C6: 광명시 | D6: 431 | E6: 2016-02-03 | F6: 2017-02-02 | G6: =IF(F6-$D$4+1<365,F6-$D$4+1,365) -> 186 | H6: =F6-E6+1 -> 366 | I6: =ROUNDUP(D6*G6/H6/10,0) -> 22
A7: 2 | B7: 경기16공공1지구전략환경영향평가용역 | C7: 한국토지주택공사 경기지역본부 | D7: 75 | E7: 2016-05-02 | F7: 2016-12-30 | G7: =IF(F7-$D$4+1<365,F7-$D$4+1,365) -> 152 | H7: =F7-E7+1 -> 243 | I7: =ROUNDUP(D7*G7/H7/10,0) -> 5
B8: 계 | I8: =SUM(I6:I7) -> 27

Sheet 업무여유도-조태현
A2: (4). 업무여유도
A3: ( 참여분야 : 폐기물처리 책임평가자, 조태현)
A4: (중복도 산정 기준일) | D4: 2016-08-01
A5: No. | B5: 용역명 | C5: 발주처 | D5: 총사업금액 (백만원) | E5: 착수일 | F5: 준공일 | G5: 1년이내 잔여일수 | H5: 총계약일수 | I5: 중복금액 (백만원)
A6: 1 | B6: 금산군소하천정비종합계획수립(변경) 전략환경영향평가 | C6: 충청남도 금산군 | D6: 528 | E6: 2014-09-12 | F6: 2016-09-10 | G6: =IF(F6-$D$4+1<365,F6-$D$4+1,365) -> 41 | H6: =F6-E6+1 -> 730 | I6: =ROUNDUP(D6*G6/H6/10,0) -> 3
A7: 2 | B7: 웅천지방하천 정비사업 소규모환경영향평가 용역 | C7: 충청남도 종합건설 사업소 | D7: 34 | E7: 2016-03-23 | F7: 2016-09-18 | G7: 49 | H7: 180 | I7: 1
A8: 3 | B8: 당진종합운동장도시관리계획(변경)결정 조성계획수립 전략환경영향평가용역 | C8: 충청남도 당진시 | D8: 60 | E8: 2016-03-28 | F8: 2016-09-23 | G8: 54 | H8: 180 | I8: 2
A9: 4 | B9: 대둔산도립공원 계획 변경 전략환경영향평가 용역 | C9: 충청남도 | D9: 61 | E9: 2016-06-02 | F9: 2017-09-24 | G9: 365 | H9: 480 | I9: 5
A10: 5 | B10: 덕평지구 위험도로 구조개선공사 소규모환경영향평가용역 | C10: 충청남도 논산시 | D10: 27 | E10: 2016-05-30 | F10: 2016-09-26 | G10: 57 | H10: 120 | I10: 2
A11: 6 | B11: 황사소하천 정비사업 소규모환경영향평가용역 | C11: 충청남도 서천군 | D11: 15 | E11: 2016-06-08 | F11: 2016-09-05 | G11: 36 | H11: 90 | I11: 1
A12: 7 | B12: 기물소하천정비사업실시설계소규모환경영향평가 | C12: 충청남도금산군 | D12: 15 | E12: 2016-06-29 | F12: 2016-11-25 | G12: 117 | H12: 150 | I12: 2
B13: 계 | I13: =SUM(I6:I12) -> 16

Sheet 업무여유도-박동철
A2: □ 업무여유도
A3: ( 참여분야 : 소음진동책임기술자, 박동철)
A4: (중복도 산정 기준일) | D4: 2016-08-01
A5: No. | B5: 용역명 | C5: 발주처 | D5: 총사업금액 (백만원) | E5: 착수일 | F5: 준공일 | G5: 1년이내 잔여일수 | H5: 총계약일수 | I5: 중복금액 (백만원)
A6: 1 | B6: 광명소하지구도시개발사업환경영향평가용역 | C6: 광명시 | D6: 431 | E6: 2016-02-03 | F6: 2017-02-02 | G6: =IF(F6-$D$4+1<365,F6-$D$4+1,365) -> 186 | H6: =F6-E6+1 -> 366 | I6: =ROUNDUP(D6*G6/H6/10,0) -> 22
A7: 2 | B7: 경기16공공1지구전략환경영향평가용역 | C7: 한국토지주택공사 경기지역본부 | D7: 75 | E7: 2016-05-02 | F7: 2016-12-30 | G7: =IF(F7-$D$4+1<365,F7-$D$4+1,365) -> 152 | H7: =F7-E7+1 -> 243 | I7: =ROUNDUP(D7*G7/H7/10,0) -> 5
A8: 3 | B8: 농진청등종전부동산1,2,4,6지구개발사업전략및환경영향평가용역 | C8: 한국농어촌공사 | D8: 536 | E8: 2014-10-02 | F8: 2016-12-20 | G8: =IF(F8-$D$4+1<365,F8-$D$4+1,365) -> 142 | H8: 811 | I8: 10
B9: 계 | I9: =SUM(I6:I8) -> 37

Sheet 업무여유도 양식(허선욱)
A2: (4). 업무여유도
A3: ( 참여분야 : 자연환경분야 책임기술자 , 허선욱)
A4: (중복도 산정 기준일) | D4: 2016-08-01
A5: No. | B5: 용역명 | D5: 총사업금액 (백만원) | E5: 착수일 | F5: 준공일 | G5: 잔여 일수 | H5: 총계약 일수 | I5: 중복금액 (백만원)
A6: 1 | B6: 설악산국립공원 오색삭도 설치사업 환경영향평가용역 | D6: 677 | E6: 2015-03-05 | F6: 2016-12-31 | G6: =IF(F6-$D$4+1<365,F6-$D$4+1,365) -> 153 | H6: =SUM(F6-E6) -> 667 | I6: =ROUNDUP((SUM((D6*(G6/H6)/10)+I28)),2) -> 15.53
A7: 2 | B7: 남강최상류, 가화천권역 하천기본계획수립 및 전략환경영향평가용역 | D7: 446 | E7: 2015-11-17 | F7: 2017-11-05 | G7: =IF(F7-$D$4+1<365,F7-$D$4+1,365) -> 365 | H7: =SUM(F7-E7) -> 719 | I7: =ROUNDUP((SUM((D7*(G7/H7)/10))),2) -> 22.65
A8: 3 | B8: 논산시 소하천정비종합계획 재수립 전략환경영향평가용역 | D8: 529 | E8: 2015-12-15 | F8: 2017-12-03 | G8: =IF(F8-$D$4+1<365,F8-$D$4+1,365) -> 365 | H8: =SUM(F8-E8) -> 719 | I8: =ROUNDUP((SUM((D8*(G8/H8)/10))),2) -> 26.86
B9: 계 | I9: =SUM(I6:I8) -> 65.04

Sheet 업무여유도 양식(김대훈)
A2: (4). 업무여유도
A3: ( 참여분야 : 교통분야 책임기술자 , 김대훈)
A4: (중복도 산정 기준일) | D4: 2016-08-01
A5: No. | B5: 용역명 | D5: 총사업금액 (백만원) | E5: 착수일 | F5: 준공일 | G5: 잔여 일수 | H5: 총계약 일수 | I5: 중복금액 (백만원)
A6: 1 | B6: 전라선(신리-순천)복선전철화 사후평가 | D6: 167 | E6: 2016-03-31 | F6: 2016-10-25 | G6: =IF(F6-$D$4+1<365,F6-$D$4+1,365) -> 86 | H6: =SUM(F6-E6) -> 208 | I6: =ROUNDUP((SUM((D6*(G6/H6)/10)+I31)),2) -> 6.91
A7: 2 | B7: 국가지원지방도20호선(포항상원-청하)건설공사 등 2건 교통영향분석, 개선대책수립용역 | D7: 615 | E7: 2013-11-01 | F7: 2017-04-30 | G7: =IF(F7-$D$4+1<365,F7-$D$4+1,365) -> 273 | H7: =SUM(F7-E7) -> 1276 | I7: =ROUNDUP((SUM((D7*(G7/H7)/10)+I33)),2) -> 13.16
A8: 3 | B8: 인천00도시첨단산업단지 영향평가용역 | D8: 545 | E8: 2014-08-11 | F8: 2017-09-18 | G8: =IF(F8-$D$4+1<365,F8-$D$4+1,365) -> 365 | H8: =SUM(F8-E8) -> 1134 | I8: =ROUNDUP((SUM((D8*(G8/H8)/10)+I34)),2) -> 17.55
A9: 4 | B9: 고덕국제화계획지구 주변도로 건설사업 제영향평가용역 | D9: 1071 | E9: 중지중 (2010.01.28) | G9: 0 | H9: 0 | I9: 0
B10: 계 | I10: =SUM(I6:I8) -> 37.62

Sheet 업무여유도-윤대일
A2: □ 업무여유도
A3: ( 참여분야 : 수질관리참여기술자, 윤대일)
A4: (중복도 산정 기준일) | D4: 2016-08-01
A5: No. | B5: 용역명 | C5: 발주처 | D5: 총사업금액 (백만원) | E5: 착수일 | F5: 준공일 | G5: 1년이내 잔여일수 | H5: 총계약일수 | I5: 중복금액 (백만원)
A6: 1 | B6: 광주-완도(나주-강진)고속도로건설사업환경영향평가용역 | C6: 한국도로공사 | D6: 832 | E6: 2015-07-24 | F6: 2016-12-27 | G6: =IF(F6-$D$4+1<365,F6-$D$4+1,365) -> 149 | H6: =F6-E6+1 -> 523 | I6: =ROUNDUP(D6*G6/H6/10,0) -> 24
A7: 2 | B7: 장항선개량2단계철도건설환경영향평가용역 | C7: 한국철도시설공단 | D7: 804 | E7: 2012-11-28 | F7: 2016-09-30 | G7: =IF(F7-$D$4+1<365,F7-$D$4+1,365) -> 61 | H7: =F7-E7+1 -> 1403 | I7: =ROUNDUP(D7*G7/H7/10,0) -> 4
A8: 3 | B8: 인천검단드림파크로대체도로건설사업전략환경영향평가용역(중지중 13.09.16) | C8: 한국토지주택공사 | D8: 50 | E8: 2013-05-20 | F8: 2014-05-19 | G8: =IF(F8-$D$4+1<365,F8-$D$4+1,365) -> -804 | H8: 365 | I8: 3개월이상 중지중
A9: 4 | B9: 한강시네폴리스일반산업단지환경보전방안수립용역 (중지중 13.05.02) | C9: 김포도시공사 | D9: 74 | E9: 2012-06-11 | F9: 2013-06-10 | G9: =IF(F9-$D$4+1<365,F9-$D$4+1,365) -> -1147 | H9: 365 | I9: 3개월이상 중지중
B10: 계 | I10: =SUM(I6:I8) -> 28

Sheet 업무여유도-전태웅
A2: □ 업무여유도
A3: ( 참여분야 : 대기관리참여기술자, 전태웅)
A4: (중복도 산정 기준일) | D4: 2016-08-01
A5: No. | B5: 용역명 | C5: 발주처 | D5: 총사업금액 (백만원) | E5: 착수일 | F5: 준공일 | G5: 1년이내 잔여일수 | H5: 총계약일수 | I5: 중복금액 (백만원)
A6: 1 | B6: 광주-완도(나주-강진)고속도로건설사업환경영향평가용역 | C6: 한국도로공사 | D6: 832 | E6: 2015-07-24 | F6: 2016-12-27 | G6: =IF(F6-$D$4+1<365,F6-$D$4+1,365) -> 149 | H6: =F6-E6+1 -> 523 | I6: =ROUNDUP(D6*G6/H6/10,0) -> 24
A7: 2 | B7: 보령시소하천정비종합계획(변경)수립전략환경영향평가용역 | C7: 보령시 | D7: 630 | E7: 2015-03-09 | F7: 2017-03-07 | G7: 219 | H7: =F7-E7+1 -> 730 | I7: =ROUNDUP(D7*G7/H7/10,0) -> 19
A8: 3 | B8: 청송군소하천정비종합계획(변경)전략환경영향평가 (중지중 16.05.13) | C8: 청송군 | D8: 580 | E8: 2015-07-10 | F8: 2016-07-08 | G8: -23 | H8: 365 | I8: 잔여일 3개월이하
A9: 4 | B9: 대구권광역철도전략환경영향평가용역(중지중 16.05.12) | C9: 국토교통부 | D9: 43 | E9: 2015-11-06 | F9: 2016-06-02 | G9: -59 | H9: 210 | I9: 잔여일 3개월이하
A10: 5 | B10: 옥천군소하천정비종합계획전략환경영향평가용역 (중지중 15.05.28) | C10: 옥천군 | D10: 463 | E10: 2015-01-05 | F10: 2015-07-03 | G10: -394 | H10: =F10-E10+1 -> 180 | I10: 3개월이상 중지중
A11: 6 | B11: 한강시네폴리스일반산업단지환경보전방안수립용역 (중지중 13.05.02) | C11: 김포도시공사 | D11: 74 | E11: 2012-06-11 | F11: 2013-06-10 | G11: -1147 | H11: 365 | I11: 3개월이상 중지중
A12: w | B12: 계 | I12: =SUM(I6:I9) -> 43

Sheet 업무여유도 양식(김영제)
A2: (4). 업무여유도
A3: ( 참여분야 : 폐기물처리분야 참여평가자 , 김영제)
A4: (중복도 산정 기준일) | C4: 2016-08-01
A5: No. | B5: 용역명 | C5: 총사업금액 (백만원) | D5: 착수일 | E5: 준공일 | F5: 잔여 일수 | G5: 총계약 일수 | H5: 중복금액 (백만원)
B7: 계 | H7: =SUM(H6:H6) -> 0

Sheet 업무여유도-한창록
A2: □ 업무여유도
A3: ( 참여분야 : 소음진동참여기술자, 한창록)
A4: (중복도 산정 기준일) | D4: 2016-08-01
A5: No. | B5: 용역명 | C5: 발주처 | D5: 총사업금액 (백만원) | E5: 착수일 | F5: 준공일 | G5: 1년이내 잔여일수 | H5: 총계약일수 | I5: 중복금액 (백만원)
A6: 1 | B6: 광주-완도(나주-강진)고속도로건설사업환경영향평가용역 | C6: 한국도로공사 | D6: 832 | E6: 2015-07-24 | F6: 2016-12-27 | G6: =IF(F6-$D$4+1<365,F6-$D$4+1,365) -> 149 | H6: =F6-E6+1 -> 523 | I6: =ROUNDUP(D6*G6/H6/10,0) -> 24
A7: 2 | B7: 경기16공공1지구전략환경영향평가용역 | C7: 한국토지주택공사 경기지역본부 | D7: 75 | E7: 2016-05-02 | F7: 2016-12-30 | G7: 152 | H7: =F7-E7+1 -> 243 | I7: =ROUNDUP(D7*G7/H7/10,0) -> 5
A8: 3 | B8: 보령시소하천정비종합계획(변경)수립전략환경영향평가용역 | C8: 보령시 | D8: 630 | E8: 2015-03-09 | F8: 2017-03-07 | G8: 219 | H8: 730 | I8: 19
A9: 4 | B9: 대구권광역철도전략환경영향평가용역(중지중 16.05.12) | C9: 국토교통부 | D9: 43 | E9: 2015-11-06 | F9: 2016-06-02 | G9: -59 | H9: 210 | I9: 잔여일 3개월이하
A10: 5 | B10: 청송군소하천정비종합계획(변경)전략환경영향평가 (중지중 16.05.13) | C10: 청송군 | D10: 580 | E10: 2015-07-10 | F10: 2016-07-08 | G10: -23 | H10: 365 | I10: 잔여일 3개월이하
A11: 6 | B11: 옥천군소하천정비종합계획전략환경영향평가용역 (중지중 15.05.28) | C11: 옥천군 | D11: 463 | E11: 2015-01-05 | F11: 2015-07-03 | G11: -394 | H11: =F11-E11+1 -> 180 | I11: 3개월이상 중지중
A12: 7 | B12: 인천검단드림파크로대체도로건설사업전략환경영향평가용역(중지중 13.09.16) | C12: 한국토지주택공사 | D12: 50 | E12: 2013-05-20 | F12: 2014-05-19 | G12: -804 | H12: =F12-E12+1 -> 365 | I12: 3개월이상 중지중
B13: 계 | I13: =SUM(I6:I10) -> 48

Sheet 업무여유도 양식(이동한)
A2: (4). 업무여유도
A3: ( 참여분야 : 자연환경분야 참여평가자 , 이동한)
A4: (중복도 산정 기준일) | D4: 2016-08-01
A5: No. | B5: 용역명 | D5: 총사업금액 (백만원) | E5: 착수일 | F5: 준공일 | G5: 잔여 일수 | H5: 총계약 일수 | I5: 중복금액 (백만원)
A6: 1 | B6: 해리-부안 도로건설공사 전략 및 환경 영향평가용역 | D6: 562 | E6: 2016-03-07 | F6: 2017-03-01 | G6: =IF(F6-$D$4+1<365,F6-$D$4+1,365) -> 213 | H6: =F6-E6+1 -> 360 | I6: =ROUNDUP((SUM((D6*(G6/H6)/10)+I29)),2) -> 33.26
B7: 계 | I7: =SUM(I6:I6) -> 33.26

Sheet 업무여유도 양식(이원선)
A2: (4). 업무여유도
A3: ( 참여분야 : 교통분야 참여평가자 , 이원선)
A4: (중복도 산정 기준일) | D4: 2016-08-01
A5: No. | B5: 용역명 | D5: 총사업금액 (백만원) | E5: 착수일 | F5: 준공일 | G5: 잔여 일수 | H5: 총계약 일수 | I5: 중복금액 (백만원)
A6: 1 | B6: 해리-부안 도로건설공사 교통영향분석, 개선대책수립용역 | D6: 140 | E6: 2016-05-02 | F6: 2016-10-28 | G6: =IF(F6-$D$4+1<365,F6-$D$4+1,365) -> 89 | H6: =SUM(F6-E6) -> 179 | I6: =ROUNDUP((SUM((D6*(G6/H6)/10)+I28)),2) -> 6.97
B7: 계 | I7: =SUM(I6:I6) -> 6.97
